Workbook

Sheet Resumen del presupuesto mensual
E2: PRESUPUESTO MENSUAL
D4: Nombre/ Razón Social | E4: NUBOX
D5: RUT | E5: 11.111.111-1
D6: Representante Legal | E6: Alexander Russo
D7: C.I. Representante Legal | E7: 1.111.111-1
D8: Contador | E8: Dayana Huala
D9: C.I. Contador | E9: 1.111.111-1
D10: Mes | E10: Octubre
D11: Año Comercial | E11: 2020
A15: RESUMEN
D16: TOTALES DEL PRESUPUESTO | E16: ESTIMADO | F16: REAL | G16: DIFERENCIA | H16: Variación%
D17: Ingresos | E17: =Ingresos[[#Totals],[ESTIMADO]] -> 3000 | F17: =Ingresos[[#Totals],[REAL]] -> 3300 | G17: =Totales[[#This Row],[REAL]]-Totales[[#This Row],[ESTIMADO]] -> 300 | H17: =+(Totales[[#This Row],[DIFERENCIA]]*100%)/Totales[[#This Row],[ESTIMADO]] -> 0.1
D18: Gastos | E18: =GastosOperativos[[#Totals],[ESTIMADO]]+GastosPersonal[[#Totals],[ESTIMADO]] -> 50500 | F18: =GastosOperativos[[#Totals],[REAL]]+GastosPersonal[[#Totals],[REAL]] -> 47160 | G18: =Totales[[#This Row],[REAL]]-Totales[[#This Row],[ESTIMADO]] -> -3340 | H18: =+(Totales[[#This Row],[DIFERENCIA]]*100%)/Totales[[#This Row],[ESTIMADO]] -> -0.06613861386
D19: Saldo (ingresos menos gastos) | E19: =E17-E18 -> -47500 | F19: =F17-F18 -> -43860 | G19: =Totales[[#Totals],[REAL]]-Totales[[#Totals],[ESTIMADO]] -> 3640

Sheet Ingresos (hidden)
E2: INGRESOS
C4: Nombre/ Razón Social | E4: =+'Resumen del presupuesto mensual'!E4:J4 -> NUBOX
C5: RUT | E5: =+'Resumen del presupuesto mensual'!E5:J5 -> 11.111.111-1
C6: Representante Legal | E6: =+'Resumen del presupuesto mensual'!E6:J6 -> Alexander Russo
C7: C.I. Representante Legal | E7: =+'Resumen del presupuesto mensual'!E7:J7 -> 1.111.111-1
C8: Contador | E8: =+'Resumen del presupuesto mensual'!E8:J8 -> Dayana Huala
C9: C.I. Contador | E9: =+'Resumen del presupuesto mensual'!E9:J9 -> 1.111.111-1
C10: Mes | E10: =+'Resumen del presupuesto mensual'!E10:J10 -> Octubre
C11: Año Comercial | E11: =+'Resumen del presupuesto mensual'!E11:J11 -> 2020
D13: INGRESOS | E13: ESTIMADO | F13: REAL | G13: DIFERENCIA | H13: Variación%
D14: Ventas netas | E14: 1000 | F14: 1500 | G14: =Ingresos[[#This Row],[REAL]]-Ingresos[[#This Row],[ESTIMADO]] -> 500 | H14: =+(Ingresos[[#This Row],[DIFERENCIA]]*100%)/Ingresos[[#This Row],[ESTIMADO]] -> 0.5
D15: Ingresos por intereses | E15: 1000 | F15: 1100 | G15: =Ingresos[[#This Row],[REAL]]-Ingresos[[#This Row],[ESTIMADO]] -> 100 | H15: =+(Ingresos[[#This Row],[DIFERENCIA]]*100%)/Ingresos[[#This Row],[ESTIMADO]] -> 0.1
D16: Ventas de activos (pérdidas y ganancias) | E16: 1000 | F16: 700 | G16: =Ingresos[[#This Row],[REAL]]-Ingresos[[#This Row],[ESTIMADO]] -> -300 | H16: =+(Ingresos[[#This Row],[DIFERENCIA]]*100%)/Ingresos[[#This Row],[ESTIMADO]] -> -0.3
D17: Ingresos totales | E17: =SUBTOTAL(109,Ingresos[ESTIMADO]) -> 3000 | F17: =SUBTOTAL(109,Ingresos[REAL]) -> 3300 | G17: =SUBTOTAL(109,Ingresos[DIFERENCIA]) -> 300 | H17: =+(Ingresos[[#Totals],[DIFERENCIA]]*100%)/Ingresos[[#Totals],[ESTIMADO]] -> 0.1

Sheet Gastos operativos (hidden)
E2: GASTOS OPERATIVOS
C3: Nombre/ Razón Social | E3: =+'Resumen del presupuesto mensual'!E4:J4 -> NUBOX
C4: RUT | E4: =+'Resumen del presupuesto mensual'!E5:J5 -> 11.111.111-1
C5: Representante Legal | E5: =+'Resumen del presupuesto mensual'!E6:J6 -> Alexander Russo
C6: C.I. Representante Legal | E6: =+'Resumen del presupuesto mensual'!E7:J7 -> 1.111.111-1
C7: Contador | E7: =+'Resumen del presupuesto mensual'!E8:J8 -> Dayana Huala
C8: C.I. Contador | E8: =+'Resumen del presupuesto mensual'!E9:J9 -> 1.111.111-1
C9: Mes | E9: =+'Resumen del presupuesto mensual'!E10:J10 -> Octubre
C10: Año Comercial | E10: =+'Resumen del presupuesto mensual'!E11:J11 -> 2020
E12: GASTOS OPERATIVOS | F12: ESTIMADO | G12: REAL | H12: DIFERENCIA | I12: Variación%
E13: Almacenamiento | F13: 1000 | G13: 840 | H13: =GastosOperativos[[#This Row],[ESTIMADO]]-GastosOperativos[[#This Row],[REAL]] -> 160 | I13: =+(GastosOperativos[[#This Row],[DIFERENCIA]]*100%)/GastosOperativos[[#This Row],[ESTIMADO]] -> 0.16
E14: Arriendos | F14: 1000 | G14: 840 | H14: =GastosOperativos[[#This Row],[ESTIMADO]]-GastosOperativos[[#This Row],[REAL]] -> 160 | I14: =+(GastosOperativos[[#This Row],[DIFERENCIA]]*100%)/GastosOperativos[[#This Row],[ESTIMADO]] -> 0.16
E15: Despacho | F15: 1000 | G15: 840 | H15: =GastosOperativos[[#This Row],[ESTIMADO]]-GastosOperativos[[#This Row],[REAL]] -> 160 | I15: =+(GastosOperativos[[#This Row],[DIFERENCIA]]*100%)/GastosOperativos[[#This Row],[ESTIMADO]] -> 0.16
E16: Suscripciones | F16: 1000 | G16: 840 | H16: =GastosOperativos[[#This Row],[ESTIMADO]]-GastosOperativos[[#This Row],[REAL]] -> 160 | I16: =+(GastosOperativos[[#This Row],[DIFERENCIA]]*100%)/GastosOperativos[[#This Row],[ESTIMADO]] -> 0.16
E17: Depreciación | F17: 1000 | G17: 840 | H17: =GastosOperativos[[#This Row],[ESTIMADO]]-GastosOperativos[[#This Row],[REAL]] -> 160 | I17: =+(GastosOperativos[[#This Row],[DIFERENCIA]]*100%)/GastosOperativos[[#This Row],[ESTIMADO]] -> 0.16
E18: C. Monetaria | F18: 1000 | G18: 840 | H18: =GastosOperativos[[#This Row],[ESTIMADO]]-GastosOperativos[[#This Row],[REAL]] -> 160 | I18: =+(GastosOperativos[[#This Row],[DIFERENCIA]]*100%)/GastosOperativos[[#This Row],[ESTIMADO]] -> 0.16
E19: Descuentos | F19: 1000 | G19: 840 | H19: =GastosOperativos[[#This Row],[ESTIMADO]]-GastosOperativos[[#This Row],[REAL]] -> 160 | I19: =+(GastosOperativos[[#This Row],[DIFERENCIA]]*100%)/GastosOperativos[[#This Row],[ESTIMADO]] -> 0.16
E20: Deuda Incobrable | F20: 1000 | G20: 840 | H20: =GastosOperativos[[#This Row],[ESTIMADO]]-GastosOperativos[[#This Row],[REAL]] -> 160 | I20: =+(GastosOperativos[[#This Row],[DIFERENCIA]]*100%)/GastosOperativos[[#This Row],[ESTIMADO]] -> 0.16
E21: Créditos | F21: 1000 | G21: 840 | H21: =GastosOperativos[[#This Row],[ESTIMADO]]-GastosOperativos[[#This Row],[REAL]] -> 160 | I21: =+(GastosOperativos[[#This Row],[DIFERENCIA]]*100%)/GastosOperativos[[#This Row],[ESTIMADO]] -> 0.16
E22: Costo de venta | F22: 1000 | G22: 840 | H22: =GastosOperativos[[#This Row],[ESTIMADO]]-GastosOperativos[[#This Row],[REAL]] -> 160 | I22: =+(GastosOperativos[[#This Row],[DIFERENCIA]]*100%)/GastosOperativos[[#This Row],[ESTIMADO]] -> 0.16
E23: Impuestos | F23: 1000 | G23: 840 | H23: =GastosOperativos[[#This Row],[ESTIMADO]]-GastosOperativos[[#This Row],[REAL]] -> 160 | I23: =+(GastosOperativos[[#This Row],[DIFERENCIA]]*100%)/GastosOperativos[[#This Row],[ESTIMADO]] -> 0.16
E24: Intereses | F24: 1000 | G24: 840 | H24: =GastosOperativos[[#This Row],[ESTIMADO]]-GastosOperativos[[#This Row],[REAL]] -> 160 | I24: =+(GastosOperativos[[#This Row],[DIFERENCIA]]*100%)/GastosOperativos[[#This Row],[ESTIMADO]] -> 0.16
E25: Asesorías | F25: 1000 | G25: 840 | H25: =GastosOperativos[[#This Row],[ESTIMADO]]-GastosOperativos[[#This Row],[REAL]] -> 160 | I25: =+(GastosOperativos[[#This Row],[DIFERENCIA]]*100%)/GastosOperativos[[#This Row],[ESTIMADO]] -> 0.16
E26: Mantención | F26: 1000 | G26: 840 | H26: =GastosOperativos[[#This Row],[ESTIMADO]]-GastosOperativos[[#This Row],[REAL]] -> 160 | I26: =+(GastosOperativos[[#This Row],[DIFERENCIA]]*100%)/GastosOperativos[[#This Row],[ESTIMADO]] -> 0.16
E27: Reparaciones | F27: 1000 | G27: 840 | H27: =GastosOperativos[[#This Row],[ESTIMADO]]-GastosOperativos[[#This Row],[REAL]] -> 160 | I27: =+(GastosOperativos[[#This Row],[DIFERENCIA]]*100%)/GastosOperativos[[#This Row],[ESTIMADO]] -> 0.16
E28: Mat. de oficina | F28: 1000 | G28: 840 | H28: =GastosOperativos[[#This Row],[ESTIMADO]]-GastosOperativos[[#This Row],[REAL]] -> 160 | I28: =+(GastosOperativos[[#This Row],[DIFERENCIA]]*100%)/GastosOperativos[[#This Row],[ESTIMADO]] -> 0.16
E29: Gastos Notariales | F29: 1000 | G29: 840 | H29: =GastosOperativos[[#This Row],[ESTIMADO]]-GastosOperativos[[#This Row],[REAL]] -> 160 | I29: =+(GastosOperativos[[#This Row],[DIFERENCIA]]*100%)/GastosOperativos[[#This Row],[ESTIMADO]] -> 0.16
E30: Publicidad | F30: 1000 | G30: 840 | H30: =GastosOperativos[[#This Row],[ESTIMADO]]-GastosOperativos[[#This Row],[REAL]] -> 160 | I30: =+(GastosOperativos[[#This Row],[DIFERENCIA]]*100%)/GastosOperativos[[#This Row],[ESTIMADO]] -> 0.16
E31: Seguro | F31: 1000 | G31: 840 | H31: =GastosOperativos[[#This Row],[ESTIMADO]]-GastosOperativos[[#This Row],[REAL]] -> 160 | I31: =+(GastosOperativos[[#This Row],[DIFERENCIA]]*100%)/GastosOperativos[[#This Row],[ESTIMADO]] -> 0.16
E32: Servicios públicos | F32: 1000 | G32: 840 | H32: =GastosOperativos[[#This Row],[ESTIMADO]]-GastosOperativos[[#This Row],[REAL]] -> 160 | I32: =+(GastosOperativos[[#This Row],[DIFERENCIA]]*100%)/GastosOperativos[[#This Row],[ESTIMADO]] -> 0.16
E33: Suministros básicos | F33: 1000 | G33: 840 | H33: =GastosOperativos[[#This Row],[ESTIMADO]]-GastosOperativos[[#This Row],[REAL]] -> 160 | I33: =+(GastosOperativos[[#This Row],[DIFERENCIA]]*100%)/GastosOperativos[[#This Row],[ESTIMADO]] -> 0.16
E34: Internet | F34: 1000 | G34: 840 | H34: =GastosOperativos[[#This Row],[ESTIMADO]]-GastosOperativos[[#This Row],[REAL]] -> 160 | I34: =+(GastosOperativos[[#This Row],[DIFERENCIA]]*100%)/GastosOperativos[[#This Row],[ESTIMADO]] -> 0.16
E35: Telefonía | F35: 1000 | G35: 840 | H35: =GastosOperativos[[#This Row],[ESTIMADO]]-GastosOperativos[[#This Row],[REAL]] -> 160 | I35: =+(GastosOperativos[[#This Row],[DIFERENCIA]]*100%)/GastosOperativos[[#This Row],[ESTIMADO]] -> 0.16
E36: Otros | F36: 1000 | G36: 840 | H36: =GastosOperativos[[#This Row],[ESTIMADO]]-GastosOperativos[[#This Row],[REAL]] -> 160 | I36: =+(GastosOperativos[[#This Row],[DIFERENCIA]]*100%)/GastosOperativos[[#This Row],[ESTIMADO]] -> 0.16
E37: Total de gastos operativos | F37: =SUBTOTAL(109,GastosOperativos[ESTIMADO]) -> 24000 | G37: =SUBTOTAL(109,GastosOperativos[REAL]) -> 20160 | H37: =SUBTOTAL(109,GastosOperativos[DIFERENCIA]) -> 3840 | I37: =+(GastosOperativos[[#Totals],[DIFERENCIA]]*100%)/GastosOperativos[[#Totals],[ESTIMADO]] -> 0.16

Sheet Gastos de personal (hidden)
E2: GASTOS DE PERSONAL
C3: Nombre/ Razón Social | E3: =+'Resumen del presupuesto mensual'!E4:J4 -> NUBOX
C4: RUT | E4: =+'Resumen del presupuesto mensual'!E5:J5 -> 11.111.111-1
C5: Representante Legal | E5: =+'Resumen del presupuesto mensual'!E6:J6 -> Alexander Russo
C6: C.I. Representante Legal | E6: =+'Resumen del presupuesto mensual'!E7:J7 -> 1.111.111-1
C7: Contador | E7: =+'Resumen del presupuesto mensual'!E8:J8 -> Dayana Huala
C8: C.I. Contador | E8: =+'Resumen del presupuesto mensual'!E9:J9 -> 1.111.111-1
C9: Mes | E9: =+'Resumen del presupuesto mensual'!E10:J10 -> Octubre
C10: Año Comercial | E10: =+'Resumen del presupuesto mensual'!E11:J11 -> 2020
C13: GASTOS DE PERSONAL | D13: ESTIMADO | E13: REAL | F13: DIFERENCIA | G13: Variación%
C14: Sueldos Fijos | D14: 9500 | E14: 9700 | F14: =GastosPersonal[[#This Row],[ESTIMADO]]-GastosPersonal[[#This Row],[REAL]] -> -200 | G14: =+(GastosPersonal[[#This Row],[DIFERENCIA]]*100%)/GastosPersonal[[#This Row],[ESTIMADO]] -> -0.02105263158
C15: Honorarios Profesionales | D15: 4000 | E15: 3800 | F15: =GastosPersonal[[#This Row],[ESTIMADO]]-GastosPersonal[[#This Row],[REAL]] -> 200 | G15: =+(GastosPersonal[[#This Row],[DIFERENCIA]]*100%)/GastosPersonal[[#This Row],[ESTIMADO]] -> 0.05
C16: Obligaciones Laborales | D16: 4000 | E16: 4000 | F16: =GastosPersonal[[#This Row],[ESTIMADO]]-GastosPersonal[[#This Row],[REAL]] -> 0 | G16: =+(GastosPersonal[[#This Row],[DIFERENCIA]]*100%)/GastosPersonal[[#This Row],[ESTIMADO]] -> 0
C17: Bonos | D17: 4000 | E17: 5000 | F17: =GastosPersonal[[#This Row],[ESTIMADO]]-GastosPersonal[[#This Row],[REAL]] -> -1000 | G17: =+(GastosPersonal[[#This Row],[DIFERENCIA]]*100%)/GastosPersonal[[#This Row],[ESTIMADO]] -> -0.25
C18: Comisiones | D18: 5000 | E18: 4500 | F18: =GastosPersonal[[#This Row],[ESTIMADO]]-GastosPersonal[[#This Row],[REAL]] -> 500 | G18: =+(GastosPersonal[[#This Row],[DIFERENCIA]]*100%)/GastosPersonal[[#This Row],[ESTIMADO]] -> 0.1
C19: Gastos de personal totales | D19: =SUBTOTAL(109,GastosPersonal[ESTIMADO]) -> 26500 | E19: =SUBTOTAL(109,GastosPersonal[REAL]) -> 27000 | F19: =SUBTOTAL(109,GastosPersonal[DIFERENCIA]) -> -500 | G19: =+(GastosPersonal[[#Totals],[DIFERENCIA]]*100%/GastosPersonal[[#Totals],[ESTIMADO]]) -> -0.01886792453

Sheet instructivo (hidden)
C8: Notas Iniciales | L8: Apartado N°1: Portada | W8: Apartado N°2: Ingresos | AL8: Apartado N°3: Gastos Operativos | BA8: Apartado N°4: Gastos de Personal | BP8: Apartado N°5: Instructivo
B9: **Al abrir este archivo, recuerda habilitar el contenido para macros. | Z9: 2 | AO9: 2 | BD9: 2
K11: 1 | L11: Nombre/ Razón Social | M11: NUBOX | Z11: Nombre/ Razón Social | AB11: =+M11 -> NUBOX | AO11: Nombre/ Razón Social | AQ11: =+AB11 -> NUBOX | BD11: Nombre/ Razón Social | BF11: =+AQ11 -> NUBOX | BP11: 1
K12: 2 | L12: RUT | M12: 11.111.111-1 | Z12: RUT | AB12: =+M12 -> 11.111.111-1 | AO12: RUT | AQ12: =+AB12 -> 11.111.111-1 | BD12: RUT | BF12: =+AQ12 -> 11.111.111-1
B13: ** Verificar las opciones avanzadas de tu excel para acceder al formato de trabajo de esta plantilla (Visual Basic). | K13: 3 | L13: Representante Legal | M13: Alexander Russo | Z13: Representante Legal | AB13: Alexander Russo | AO13: Representante Legal | AQ13: Alexander Russo | BD13: Representante Legal | BF13: Alexander Russo
K14: 4 | L14: C.I. Representante Legal | M14: 1.111.111-1 | Z14: C.I. Representante Legal | AB14: 1.111.111-1 | AO14: C.I. Representante Legal | AQ14: 1.111.111-1 | BD14: C.I. Representante Legal | BF14: 1.111.111-1
B15: *Para guardar el archivo en el computador de trabajo, se debe guardar como documento habilitado para macros. | K15: 5 | L15: Contador | M15: Dayana Huala | Z15: Contador | AB15: Dayana Huala | AO15: Contador | AQ15: Dayana Huala | BD15: Contador | BF15: Dayana Huala | BP15: 2
K16: 6 | L16: C.I. Contador | M16: 1.111.111-1 | Z16: C.I. Contador | AB16: 1.111.111-1 | AO16: C.I. Contador | AQ16: 1.111.111-1 | BD16: C.I. Contador | BF16: 1.111.111-1
B17: ** Complementa el presupuesto con libros auxiliares para trabajar con montos finales, según los movimientos totales del giro comercial (libro de ingresos y egresos, libro de compras y ventas, y libro de remuneraciones). | K17: 7 | L17: Mes | M17: Febrero | U17: Lista desplegable | Z17: Mes | AB17: Febrero | AO17: Mes | AQ17: Febrero | BD17: Mes | BF17: Febrero
K18: 8 | L18: Año Comercial | M18: 2019 | Z18: Año Comercial | AB18: 2019 | AO18: Año Comercial | AQ18: 2019 | BD18: Año Comercial | BF18: 2019
BP19: 3
B20: **Este libro se llena de manera mensual y se deben guardar sus copias mensuales según mes calendario a trabajar. (Mantener este archvo como documento principal). | W20: 1.- Indicaciones en el N°10 del primer apartado. | Z20: 2.- El apartado se llena automáticamente, de acuerdo a información proporcionada en el pimer apartado (Portada). | AL20: 1.- Indicaciones en el N°10 del primer apartado. | AO20: 2.- El apartado se llena automáticamente, de acuerdo a información proporcionada en el pimer apartado (Portada). | BA20: 1.- Indicaciones en el N°10 del primer apartado. | BD20: 2.- El apartado se llena automáticamente, de acuerdo a la información proporcionada en el pimer apartado (Portada).
BP22: 4
B26: **Al guardar el documento, aparecerá este mensaje, el cual deberá aceptar para respetar fórmulas.
BP29: 1.- Ícono para volver al menú principal.
K30: 1.- Nombre/ Razón Social: correspondiente al inscrito al momento del inicio de actividades. | BP30: 2.- Botón para ir a visualisar el apartado N°2: Ingresos.
K31: 2.- RUT: Rol Único Tributario Asignado por el Servicio de Impuestos Internos (SII). | W31: 3.- Gastos Operativos: corresponde a la planilla de gastos operativos, donde al pinchar sobre el ícono se deriva inmediatamente al apartado de gastos operativos. | AD31: 6.- Ícono de ayuda, cada vez que se presione te recordará que debes verificar la información de ingresos recien digitalizados. (Se debe aceptar para continuar trabajando). | AL31: 3.- Sección Ingresos: corresponde a la planilla de ingresos, donde al pinchar sobre el ícono se deriva inmediatamente al apartado de ingresos. | AS31: 6.- Ícono de ayuda, cada vez que se presione te recordará que debes verificar la información de gastos operativos recien digitalizados. (Se debe aceptar para continuar trabajando). | BA31: 3.- Sección Ingresos: corresponde a la planilla de ingresos, donde al pinchar sobre el ícono se deriva inmediatamente al apartado de ingresos. | BP31: 3.-Botón para ir a visualizar el apartado N°3: Gastos Operativos.
K32: 3.- Representante Legal: corresponde aquel contribuyente autorizado en el Servicio de Impuestos Internos (SII) | BP32: 4.- Botón para ir a visualizar el apartado N°4: Gastos de Personal.
K33: 4.- C.I. Representante Legal: Cédula de Identidad del Representante Legal Autorizado. | W33: 4.-Gastos de Personal: corresponde a la planilla de gastos de personal, donde al pinchar sobre ícono se deriva inmediatamente al apartado de gastos de personal. | AL33: 4.-Gastos de Personal: corresponde a la planilla de gastos de personal, donde al pinchar sobre ícono se deriva inmediatamente al apartado de gastos de personal. | BA33: 4.-Gastos Operativos: corresponde a la planilla de gastos operativos, donde al pinchar sobre el ícono se deriva inmediatamente al apartado de Gastos Operativos.
B34: **Al abrir el documento, se desplegará este mensaje. Hacer clic en no actualizar, para mantener fórmulas | K34: 5.- Contador: nombre del contador a cargo del llenado | AD34: 7.-ícono para acceder al instructivo desde la sección de ingresos (Apartado N°2). | AS34: 7.-Ícono para acceder al instructivo desde la sección de gastos operativos (Apartado N°3).
K35: 6.- C.I. Contador: Cédula de Identidad del ontador a cargo del llenado | W35: 5.- Ícono para volver al menú principal. | AL35: 5.- Ícono para volver al menú principal. | BA35: 5.- Ícono para volver al menú principal.
K36: 7.- Mes: mes correspondiente a completar. Éste se selecciona de lista desplegable | BH36: 6.- Ícono de ayuda, cada vez que se presione te recordará que debes verificar la información de gastos operativos recien digitalizados. (se debe aceptar, para continuar trabajando).
K37: 8.- Año Comercial: año comercial correspondiente | Y37: 8 | AA37: 9 | AB37: 10 | AD37: 11 | AF37: 12 | AN37: 8 | AQ37: 9 | AS37: 10 | AT37: 11 | AV37: 12
BH38: 7.-Ícono para acceder al instructivo desde la sección de gastos de personal (Apartado N°4).
K39: 9- | R39: 9.- Al pinchar sobre el logo, obtendrá información para realizar el cambio de logo a la empresa correspondiente que utilizará la planilla. Se debe hacer click derecho y seleccionar cambiar imagen. Realizar este procedimiento no afecta el mensaje que entrega la alerta. Finalmente, debe seleccionar aceptar, para seguir realizando el llenado. (Se repite en el apartado N°2 de Ingresos; N°3 de gastos operativos y N°4 de gastos de personal).
BE40: 8 | BG40: 9 | BH40: 10 | BJ40: 11 | BL40: 12
W48: 8.- Ingresos: se debe individualizar el tipo de ingreso que se considerará en el presupuesto. Se dejan como ejemplo: ventas netas, ingresos por intereses, ventas de activos.
W49: 9.-Estimado: se coloca el valor estimado de lo que se considerará como ingreso. Se recomienda entre un 5% y un 10%, dependiendo los movimientos del ingreso en el mes anterior | AL49: 8.- Gastos operativos: se deben individualizar todos los gastos operativos de la empresa para ingresar al presupuesto. Se dejan como ejemplo aquellos ingresados en la planilla (arriendos, almacenamiento, despacho, teléfono, entre otros).
W50: 10.-Real: valores reales que se deben ingresar al presupuesto de acuerdo a los movimientos percibidos por la empresa.
U51: Mensaje de Alerta | W51: 11.- Diferencia: cálculo por diferencia entre los montos estimados y los valores reales. | AL51: 9.-Estimado: considerar el valor estimado de lo que se considerará como gasto operativo. Se recomienda entre un 5% y un 10% dependiendo de los movimientos de los gastos operativos en el mes anterior
W52: 12.- Variación %: se refleja el % de variación de los ingresos, de los valores estimados de acuerdo a los movimientos del mes anterior y los valores reales.
AL53: 10.-Real: Valores reales que se deben ingresar al presupuesto, de acuerdo a los movimientos devengados por la empresa, asociados a los gastos operativos.
W54: 13.- Gráfico de Ingresos del presupuesto. | AL54: 11.- Diferencia: cálculo por diferencia entre los montos estimados y los valores reales en los gastos operativos
AL55: 12.- Variación %: se refleja el % de variación de los gastos operativos, de los valores estimados de acuerdo a los movimientos del mes anterior y los valores reales.
AL56: 13.- Gráfico de Gastos Operativos del Presupuesto | BA56: 8.- Gastos de personal: se deben individualizar todos los gastos de personal de la empresa para ingresar al presupuesto. Se dejan como ejemplo aquellos ingresados en la planilla (Sueldo, honorarios, etc.).
K57: 10
BA58: 9.-Estimado: considerar el valor estimado de lo que se considerará como gasto de personal. Se recomienda entre un 5% y un 10%, dependiendo de los movimientos de los gastos de personal en el mes anterior.
BA60: 10.-Real: valores reales que se deben ingresar al presupuesto, de acuerdo a los movimientos percibidos por la empresa asociados a los gastos de personal.
BA61: 11.- Diferencia: cálculo por diferencia entre los montos estimados y los valores reales en los gastos de personal.
BA62: 12.- Variación %: se refleja el % de variación de los gastos de personal, de los valores estimados de acuerdo a los movimientos del mes anterior y los valores reales.
K64: 10.- Ícono de ayuda: entrega un mensaje de alerta para leer el instrutivo, antes del llenado del documento. Finalmente, debe aceptar para continuar trabajando. | BA64: 13.- Gráfico de Gastos de Personal del Presupuesto
K65: 11.- Ícono de Instructivo: en éste encontrarás toda la información necesaria para el llenado de la planilla de presupuesto; ingresos, gastos operativos y gastos de personal. | AL65: ** El gráfico reflejará los movimientos del cuadro de los gastos operativos, donde se podrán identificar visualmente los estandarés establecidos entre lo estimado y lo real, considerando los % de variaciones de los distintos ítems
K66: 12.- Sección Ingresos: corresponde a la planilla de ingresos, donde al pinchar sobre el ícono se deriva inmediatamente al apartado de ingresos.
K67: 13.- Gastos Operativos: corresponde a la planilla de gastos operativos, donde al pinchar sobre el ícono se deriva inmediatamente al apartado de gastos operativos.
K68: 14.-Gastos de Personal: corresponde a la planilla de gastos de personal, donde al pinchar sobre el ícono se deriva inmediatamente al apartado de gastos de personal.
L69: 15.-
W72: ** El gráfico reflejará los movimientos del cuadro de ingresos, donde se podrán identificar visualmente los estándares establecidos entre lo estimado y lo real, considerando los % de variaciones de los distintos ítems
K79: 15.- El cuadro de resumen corresponde al cálculo automático de la planilla de ingresos y gastos (operativos+personal). Considera lo estimado y los movimientos que se generan en el mes realmente. (Incluye el % de variación). | BA79: ** El gráfico reflejará los movimientos del cuadro de los gastos de personal, donde se podrán identificar visualmente los estandarés establecidos entre lo estimado y lo real, considerando los % de variaciones de los distintos ítems.
K81: ** Para un mejor monto estimado, se recomienda tomar de referencia el mes anterior y generar variaciones entre un 5% y 10% para aumentar los ingresos estimados y un 5% y 10% para disminuir los gastos estimados al mes siguiente, para un óptimo cumplimiento del presupuesto entre lo estimado y los movimientos reales. El cuadro de resumen trabajará como alerta para equilibrar los moviemitnos de ingresos y gastos (opertivos + personal).
K86: 16.- Gráfico de Resumen
K102: ** El gráfico reflejará los movimientos del cuadro de resumen, donde se podrán identificar visualmente los estandarés establecidos entre lo estimado y lo real de los ingresos y gastos (operativos+personal)

Sheet Hoja1 (hidden)
B5: Enero | D5: RUT EMISOR
B6: Febrero | D6: RUT RECEPTOR
B7: Marzo
B8: Abril
B9: Mayo | D9: INGRESOS $ | E9: PERCIBIDOS | F9: DEVENGADOS
B10: Junio | D10: EGRESOS $ | E10: PAGADOS | F10: ADEUDADOS
B11: Julio
B12: Agosto
B13: Septiembre | D13: INGRESOS DEVENGADOS CON ANTERIORIDAD AL INGRESO AL RÉGIMEN O AL 31-12-2014
B14: Octubre | D14: GASTOS ADEUDADOS CON ANTERIORIDAD AL INGRESO AL RÉGIMEN O AL 31-12-2014
B15: Noviembre
B16: Diciembre
